[Event "3rd Memorial Warakomska 2019"]
[Site "Suwalki"]
[Date "2019.08.06"]
[Round "2.31"]
[White "Tomczak, Jacek"]
[Black "Kokoszczynski, Jan"]
[Result "1-0"]
[ECO "C11"]
[WhiteElo "2623"]
[BlackElo "2238"]
[Annotator "ChessBase"]
[PlyCount "91"]
[EventDate "2019.08.05"]
[EventType "swiss"]
[EventCountry "POL"]
[SourceTitle "playchess.com"]
[Source "ChessBase"]
[SourceQuality "1"]
[TimeControl "40/5400+30:1800+30"]

1. e4 {[%emt 0:00:02]} e6 {[%emt 0:00:00]} 2. d4 {[%emt 0:00:12]} d5 {[%emt 0:00:03]} 3. Nc3 {[%emt 0:01:21]} Nf6 {[%emt 0:00:22]} 4. e5 {[%emt 0:01:43]} Nfd7 {[%emt 0:00:13]} 5. f4 {[%emt 0:00:08]} c5 {[%emt 0:00:14]} 6. Nf3 {[%emt 0:00:06]} a6 {[%emt 0:00:17]} 7. Be3 {[%emt 0:01:57]} Qb6 {[%emt 0:00:42]} 8. Na4 {[%emt 0:12:05]} Qa5+ {[%emt 0:00:52]} 9. c3 {[%emt 0:00:06]} cxd4 {[%emt 0:00:35]} 10. b4 {[%emt 0:00:09]} Qc7 {[%emt 0:00:25]} 11. Qxd4 {[%emt 0:00:15]} Nc6 {[%emt 0:01:16]} 12. Qd2 {[%emt 0:00:06]} Be7 {[%emt 0:05:19]} 13. Nd4 {[%emt 0:16:51]} b5 {[%emt 0:08:46]} 14. Nb2 {[%emt 0:01:46]} Nb6 {[%emt 0:00:35]} 15. a4 {[%emt 0:12:24]} bxa4 {[%emt 0:14:39]} 16. Nxa4 {[%emt 0:02:54]} Nc4 {[%emt 0:11:01]} 17. Bxc4 {[%emt 0:02:18]} dxc4 {[%emt 0:00:19]} 18. Qa2 {[%emt 0:00:46]} Nxd4 {[%emt 0:05:27]} 19. Bxd4 {[%emt 0:00:26]} Bb7 {[%emt 0:06:36]} 20. O-O {[%emt 0:00:53]} O-O {[%emt 0:03:11]} 21. Nb6 {[%emt 0:05:34]} Rad8 {[%emt 0:04:31]} 22. Qxc4 {[%emt 0:01:33]} Qxc4 {[%emt 0:04:24]} 23. Nxc4 {[%emt 0:00:13]} Bxb4 {[%emt 0:13:04]} 24. Rab1 {[%emt 0:04:04]} a5 {[%emt 0:00:17]} 25. Nxa5 {[%emt 0:02:28]} Bxa5 {[%emt 0:01:16]} 26. Rxb7 {[%emt 0:00:05]} Rc8 {[%emt 0:05:09]} 27. Rb3 {[%emt 0:00:52]} Ra8 {[%emt 0:07:58]} 28. Kf2 {[%emt 0:04:07]} Rfc8 {[%emt 0:01:15]} 29. Kf3 {[%emt 0:01:59]} Bd8 {[%emt 0:01:41]} 30. Rb7 {[%emt 0:01:36]} h6 {[%emt 0:00:33]} 31. Rfb1 {[%emt 0:01:39]} Bc7 {[%emt 0:01:25]} 32. R1b4 {[%emt 0:03:27]} Kf8 {[%emt 0:01:06]} 33. Ke4 {[%emt 0:01:10]} Ke8 {[%emt 0:00:20]} 34. g4 {[%emt 0:05:11]} Bd8 {[%emt 0:01:16]} 35. f5 {[%emt 0:01:05]} Rc6 {[%emt 0:01:39]} 36. fxe6 {[%emt 0:02:43]} Rxe6 {[%emt 0:00:12]} 37. c4 {[%emt 0:00:17]} Rc8 {[%emt 0:00:15]} 38. Rb8 {[%emt 0:00:31]} Kd7 {[%emt 0:01:01]} 39. Rxc8 {[%emt 0:03:00]} Kxc8 {[%emt 0:00:01]} 40. Ra4 {[%emt 0:00:00]} Kd7 {[%emt 0:00:00]} 41. Ra7+ {[%emt 0:02:16]} Bc7 {[%emt 0:04:16]} 42. Kd5 {[%emt 0:00:17]} g6 {[%emt 0:11:23]} 43. Ra8 {[%emt 0:04:09]} Ke7 {[%emt 0:04:26]} 44. c5 {[%emt 0:01:46]} Kd7 {[%emt 0:00:08]} 45. Rf8 {[%emt 0:00:21]} Ke7 {[%emt 0:00:04]} 46. Rh8 1-0

[Event "3rd Memorial Warakomska 2019"]
[Site "Suwalki"]
[Date "2019.08.06"]
[Round "2.32"]
[White "Sanz Wawer, Daniel"]
[Black "Warakomski, Tomasz"]
[Result "0-1"]
[ECO "A41"]
[WhiteElo "2154"]
[BlackElo "2497"]
[Annotator "ChessBase"]
[PlyCount "80"]
[EventDate "2019.08.05"]
[EventType "swiss"]
[EventCountry "POL"]
[SourceTitle "playchess.com"]
[Source "ChessBase"]
[SourceQuality "1"]
[TimeControl "40/5400+30:1800+30"]

1. d4 {[%emt 0:00:00]} d6 {[%emt 0:03:20]} 2. c4 {[%emt 0:00:34]} e5 {[%emt 0:00:07]} 3. Nf3 {[%emt 0:00:38]} e4 {[%emt 0:00:25]} 4. Nfd2 {[%emt 0:00:50]} f5 {[%emt 0:00:26]} 5. e3 {[%emt 0:01:01]} Nf6 {[%emt 0:01:43]} 6. Nc3 {[%emt 0:00:19]} g6 {[%emt 0:01:29]} 7. Be2 {[%emt 0:10:05]} Bg7 {[%emt 0:02:06]} 8. h4 {[%emt 0:02:43]} h6 {[%emt 0:05:48]} 9. g4 {[%emt 0:04:29]} c6 {[%emt 0:10:00]} 10. gxf5 {[%emt 0:02:44]} gxf5 {[%emt 0:04:07]} 11. Rg1 {[%emt 0:02:26]} Qe7 {[%emt 0:05:46]} 12. b3 {[%emt 0:00:44]} h5 {[%emt 0:03:42]} 13. Ba3 {[%emt 0:08:47]} Ng4 {[%emt 0:00:48]} 14. Qc2 {[%emt 0:09:36]} O-O {[%emt 0:23:22]} 15. Bxg4 {[%emt 0:02:01]} hxg4 {[%emt 0:00:15]} 16. Rh1 {[%emt 0:00:33]} a5 {[%emt 0:00:22]} 17. Ne2 {[%emt 0:07:01]} Na6 {[%emt 0:11:18]} 18. Nf4 {[%emt 0:00:21]} c5 {[%emt 0:00:02]} 19. Nd5 {[%emt 0:19:03]} Qf7 {[%emt 0:02:06]} 20. Bb2 {[%emt 0:11:51]} Be6 {[%emt 0:00:17]} 21. Nf4 {[%emt 0:00:29]} Nb4 {[%emt 0:00:58]} 22. Qb1 {[%emt 0:00:06]} cxd4 {[%emt 0:05:23]} 23. Bxd4 {[%emt 0:00:53]} Be5 {[%emt 0:00:04]} 24. a3 {[%emt 0:02:12]} Nc6 {[%emt 0:00:07]} 25. Bxe5 {[%emt 0:01:51]} dxe5 {[%emt 0:00:05]} 26. Nxe6 {[%emt 0:00:40]} Qxe6 {[%emt 0:00:05]} 27. Qc2 {[%emt 0:01:44]} Qe7 {[%emt 0:06:21]} 28. Nxe4 {[%emt 0:03:39]} fxe4 {[%emt 0:00:07]} 29. Qxe4 {[%emt 0:00:04]} Kh8 {[%emt 0:02:15]} 30. Qxg4 {[%emt 0:01:18]} Qh7 {[%emt 0:00:03]} 31. Rd1 {[%emt 0:06:00]} Rad8 {[%emt 0:00:48]} 32. Rg1 {[%emt 0:00:03]} Nd4 {[%emt 0:01:09]} 33. exd4 {[%emt 0:01:04]} Rg8 {[%emt 0:00:05]} 34. Qxg8+ {[%emt 0:00:32]} Rxg8 {[%emt 0:00:05]} 35. Rxg8+ {[%emt 0:00:05]} Kxg8 {[%emt 0:00:13]} 36. dxe5 {[%emt 0:01:00]} Qc2 {[%emt 0:03:20]} 37. e6 {[%emt 0:00:30]} Kf8 {[%emt 0:00:06]} 38. Rd7 {[%emt 0:00:30]} Qxb3 {[%emt 0:00:29]} 39. e7+ {[%emt 0:00:32]} Ke8 {[%emt 0:00:05]} 40. Rc7 {[%emt 0:00:00]} Qb6 {[%emt 0:00:00]} 0-1

[Event "3rd Memorial Warakomska 2019"]
[Site "Suwalki"]
[Date "2019.08.06"]
[Round "2.33"]
[White "Kumala, Aleksander"]
[Black "Malakhatko, Vadim"]
[Result "0-1"]
[ECO "B20"]
[WhiteElo "2184"]
[BlackElo "2462"]
[Annotator "ChessBase"]
[PlyCount "132"]
[EventDate "2019.08.05"]
[EventType "swiss"]
[EventCountry "POL"]
[SourceTitle "playchess.com"]
[Source "ChessBase"]
[SourceQuality "1"]
[TimeControl "40/5400+30:1800+30"]

1. e4 {[%emt 0:07:46]} c5 {[%emt 0:00:00]} 2. b4 {[%emt 0:00:04]} cxb4 {[%emt 0:00:48]} 3. a3 {[%emt 0:00:05]} bxa3 {[%emt 0:02:15]} 4. Nxa3 {[%emt 0:00:06]} d6 {[%emt 0:00:30]} 5. d4 {[%emt 0:00:09]} Nf6 {[%emt 0:00:59]} 6. Bd3 {[%emt 0:00:05]} e6 {[%emt 0:00:31]} 7. Ne2 {[%emt 0:00:39]} Be7 {[%emt 0:00:07]} 8. O-O {[%emt 0:00:29]} O-O {[%emt 0:00:08]} 9. f4 {[%emt 0:00:06]} d5 {[%emt 0:00:28]} 10. e5 {[%emt 0:03:24]} Ne4 {[%emt 0:00:06]} 11. Ng3 {[%emt 0:00:53]} f5 {[%emt 0:01:03]} 12. exf6 {[%emt 0:01:36]} Nxf6 {[%emt 0:00:21]} 13. f5 {[%emt 0:01:32]} Nc6 {[%emt 0:05:03]} 14. fxe6 {[%emt 0:15:16]} Bxe6 {[%emt 0:02:07]} 15. c3 {[%emt 0:03:40]} Kh8 {[%emt 0:02:45]} 16. Qe1 {[%emt 0:14:45]} Qd7 {[%emt 0:01:13]} 17. Nf5 {[%emt 0:03:17]} Ne4 {[%emt 0:00:16]} 18. Nxe7 {[%emt 0:00:51]} Rxf1+ {[%emt 0:00:08]} 19. Qxf1 {[%emt 0:05:05]} Qxe7 {[%emt 0:03:28]} 20. Nb5 {[%emt 0:00:06]} a6 {[%emt 0:08:47]} 21. Bxe4 {[%emt 0:03:50]} dxe4 {[%emt 0:00:11]} 22. Ba3 {[%emt 0:00:06]} Qd7 {[%emt 0:02:42]} 23. Nd6 {[%emt 0:00:06]} h6 {[%emt 0:03:41]} 24. Nxe4 {[%emt 0:06:16]} b6 {[%emt 0:01:04]} 25. Re1 {[%emt 0:04:09]} Bd5 {[%emt 0:01:48]} 26. Nd6 {[%emt 0:00:25]} b5 {[%emt 0:00:05]} 27. Bc5 {[%emt 0:03:54]} Kg8 {[%emt 0:06:34]} 28. h3 {[%emt 0:08:51]} Rf8 {[%emt 0:02:04]} 29. Qd3 {[%emt 0:00:06]} Qd8 {[%emt 0:03:35]} 30. Qg3 {[%emt 0:03:19]} Qg5 {[%emt 0:04:35]} 31. Qxg5 {[%emt 0:00:09]} hxg5 {[%emt 0:00:03]} 32. Ne4 {[%emt 0:01:00]} Ra8 {[%emt 0:04:29]} 33. Nxg5 {[%emt 0:00:38]} a5 {[%emt 0:00:03]} 34. Rb1 {[%emt 0:06:31]} b4 {[%emt 0:00:13]} 35. cxb4 {[%emt 0:00:26]} axb4 {[%emt 0:00:05]} 36. Nf3 {[%emt 0:01:17]} b3 {[%emt 0:00:12]} 37. Ne5 {[%emt 0:01:20]} Nxe5 {[%emt 0:02:15]} 38. dxe5 {[%emt 0:00:04]} Ra2 {[%emt 0:00:06]} 39. g4 {[%emt 0:01:06]} Rg2+ {[%emt 0:01:11]} 40. Kf1 {[%emt 0:00:00]} Rh2 {[%emt 0:00:00]} 41. Bf2 {[%emt 0:14:12]} Rh1+ {[%emt 0:00:38]} 42. Bg1 {[%emt 0:02:34]} Rxh3 {[%emt 0:00:05]} 43. Rd1 {[%emt 0:06:36]} Be6 {[%emt 0:11:27]} 44. g5 {[%emt 0:02:22]} Kf7 {[%emt 0:00:23]} 45. Kg2 {[%emt 0:02:44]} Rc3 {[%emt 0:00:41]} 46. Bd4 {[%emt 0:00:52]} Rc4 {[%emt 0:01:56]} 47. Rd2 {[%emt 0:02:02]} Kg6 {[%emt 0:00:17]} 48. Kf3 {[%emt 0:00:59]} Kxg5 {[%emt 0:00:30]} 49. Ke4 {[%emt 0:00:30]} Kh4 {[%emt 0:02:46]} 50. Kf3 {[%emt 0:00:56]} Kh5 {[%emt 0:13:49]} 51. Rh2+ {[%emt 0:02:05]} Kg6 {[%emt 0:02:56]} 52. Ke4 {[%emt 0:00:29]} Rc1 {[%emt 0:01:15]} 53. Rg2+ {[%emt 0:00:56]} Kf7 {[%emt 0:00:04]} 54. Rf2+ {[%emt 0:00:18]} Kg8 {[%emt 0:00:05]} 55. Rg2 {[%emt 0:01:59]} Rf1 {[%emt 0:01:13]} 56. Ke3 {[%emt 0:00:58]} Kf7 {[%emt 0:00:29]} 57. Rf2+ {[%emt 0:00:37]} Rxf2 {[%emt 0:00:05]} 58. Kxf2 {[%emt 0:00:02]} Kg6 {[%emt 0:00:31]} 59. Kg3 {[%emt 0:01:06]} Kf5 {[%emt 0:00:05]} 60. Kf3 {[%emt 0:00:42]} g5 {[%emt 0:00:31]} 61. Bb2 {[%emt 0:01:33]} g4+ {[%emt 0:01:38]} 62. Ke3 {[%emt 0:00:59]} Kg5 {[%emt 0:00:07]} 63. Bd4 {[%emt 0:02:00]} Kh4 {[%emt 0:00:06]} 64. Kf2 {[%emt 0:00:29]} Kh3 {[%emt 0:00:06]} 65. Ke3 {[%emt 0:00:31]} g3 {[%emt 0:00:58]} 66. Kf4 {[%emt 0:00:19]} g2 {[%emt 0:00:36]} 0-1

[Event "3rd Memorial Warakomska 2019"]
[Site "Suwalki"]
[Date "2019.08.06"]
[Round "2.34"]
[White "Selbes, Tarik"]
[Black "Lisowski, Krzysztof"]
[Result "0-1"]
[ECO "B31"]
[WhiteElo "2342"]
[BlackElo "2187"]
[Annotator "NA"]
[PlyCount "66"]
[EventDate "2019.08.05"]
[EventType "swiss"]
[EventCountry "POL"]
[SourceTitle "playchess.com"]
[Source "ChessBase"]
[SourceQuality "1"]
[TimeControl "40/5400+30:1800+30"]

1. e4 {[%emt 0:05:18]} c5 {[%emt 0:00:00]} 2. Nf3 {[%emt 0:00:20]} Nc6 {[%emt 0:00:00]} 3. Bb5 {[%emt 0:01:04]} g6 {[%emt 0:00:25]} 4. O-O {[%emt 0:00:37]} Bg7 {[%emt 0:01:05]} 5. Re1 {[%emt 0:01:43]} e5 {[%emt 0:08:29]} 6. Nc3 {[%emt 0:00:50]} Nge7 {[%emt 0:08:29]} 7. d3 {[%emt 0:02:35]} O-O {[%emt 0:08:50]} 8. Bc4 {[%emt 0:04:51]} h6 {[%emt 0:10:53]} 9. Nd5 {[%emt 0:04:11]} d6 {[%emt 0:00:57]} 10. Bd2 {[%emt 0:06:06]} Be6 {[%emt 0:04:06]} 11. Qc1 {[%emt 0:04:53]} Kh7 {[%emt 0:01:11]} 12. h3 {[%emt 0:08:19]} Bxd5 {[%emt 0:19:15]} 13. exd5 {[%emt 0:00:47]} Na5 {[%emt 0:04:43]} 14. a4 {[%emt 0:04:48]} Nxc4 {[%emt 0:00:51]} 15. dxc4 {[%emt 0:00:05]} f5 {[%emt 0:02:01]} 16. Ra3 {[%emt 0:00:16]} Rf7 {[%emt 0:05:24]} 17. Nh2 {[%emt 0:01:55]} Ng8 {[%emt 0:02:53]} 18. f4 {[%emt 0:01:20]} exf4 {[%emt 0:02:36]} 19. Bxf4 {[%emt 0:00:43]} Nf6 {[%emt 0:02:52]} 20. Re6 {[%emt 0:01:45]} Ne4 {[%emt 0:00:43]} 21. Nf3 {[%emt 0:01:42]} Re7 {[%emt 0:04:59]} 22. Rd3 {[%emt 0:33:00]} Qd7 {[%emt 0:00:53]} 23. Nd2 {[%emt 0:03:40]} Bd4+ {[%emt 0:02:42]} 24. Rxd4 {[%emt 0:01:23]} cxd4 {[%emt 0:00:06]} 25. Nxe4 {[%emt 0:00:12]} fxe4 {[%emt 0:00:37]} 26. Rxd6 {[%emt 0:00:19]} Qf5 {[%emt 0:00:56]} 27. g4 {[%emt 0:01:40]} Qf8 {[%emt 0:01:07]} 28. h4 {[%emt 0:05:48]} e3 {[%emt 0:00:48]} 29. Bg3 {[%emt 0:01:27]} Qf3 {[%emt 0:00:38]} 30. Kh2 {[%emt 0:00:43]} Qe2+ {[%emt 0:02:23]} 31. Kh3 {[%emt 0:00:41]} Rf8 {[%emt 0:00:24]} 32. Re6 {[%emt 0:01:08]} Rxe6 {[%emt 0:01:13]} 33. dxe6 {[%emt 0:00:05]} Rf1 {[%emt 0:00:33]} 0-1

[Event "3rd Memorial Warakomska 2019"]
[Site "Suwalki"]
[Date "2019.08.06"]
[Round "2.35"]
[White "Balinski, Damian"]
[Black "Budrewicz, Krzysztof"]
[Result "1/2-1/2"]
[ECO "A41"]
[WhiteElo "2176"]
[BlackElo "2188"]
[Annotator "NA"]
[PlyCount "69"]
[EventDate "2019.08.05"]
[EventType "swiss"]
[EventCountry "POL"]
[SourceTitle "playchess.com"]
[Source "ChessBase"]
[SourceQuality "1"]
[TimeControl "40/5400+30:1800+30"]

1. d4 {[%emt 0:00:00]} d6 {[%emt 0:00:00]} 2. Nf3 {[%emt 0:00:00]} g6 {[%emt 0:00:07]} 3. c4 {[%emt 0:00:00]} Bg7 {[%emt 0:00:15]} 4. Nc3 {[%emt 0:00:09]} Bg4 {[%emt 0:01:00]} 5. g3 {[%emt 0:05:26]} Bxf3 6. exf3 {[%emt 0:00:02]} e6 {[%emt 0:02:29]} 7. d5 {[%emt 0:07:25]} exd5 {[%emt 0:13:16]} 8. cxd5 {[%emt 0:04:42]} Ne7 {[%emt 0:03:23]} 9. Bh3 {[%emt 0:08:12]} O-O {[%emt 0:01:38]} 10. O-O {[%emt 0:02:07]} Nd7 {[%emt 0:00:04]} 11. Be3 {[%emt 0:05:04]} Ne5 {[%emt 0:22:24]} 12. Rb1 {[%emt 0:01:14]} c5 {[%emt 0:03:21]} 13. dxc6 {[%emt 0:02:01]} bxc6 {[%emt 0:00:05]} 14. f4 {[%emt 0:06:04]} Nc4 {[%emt 0:00:08]} 15. Bd4 {[%emt 0:00:16]} d5 {[%emt 0:06:02]} 16. b3 {[%emt 0:06:32]} Bxd4 {[%emt 0:02:27]} 17. Qxd4 {[%emt 0:00:10]} Nd6 {[%emt 0:00:31]} 18. Rbc1 {[%emt 0:03:32]} Re8 {[%emt 0:04:11]} 19. Na4 {[%emt 0:05:35]} Nef5 {[%emt 0:02:58]} 20. Qd3 {[%emt 0:00:44]} Rc8 {[%emt 0:01:19]} 21. Nc5 {[%emt 0:01:42]} h5 {[%emt 0:00:55]} 22. Rc2 {[%emt 0:03:00]} Qf6 {[%emt 0:13:25]} 23. Nd7 {[%emt 0:06:05]} Qe6 {[%emt 0:08:52]} 24. Ne5 {[%emt 0:01:03]} Ne4 {[%emt 0:02:23]} 25. Rfc1 {[%emt 0:04:36]} c5 {[%emt 0:01:19]} 26. f3 {[%emt 0:11:53]} c4 {[%emt 0:04:12]} 27. bxc4 Qb6+ {[%emt 0:00:04]} 28. Kh1 {[%emt 0:06:22]} Nf2+ {[%emt 0:04:00]} 29. Rxf2 {[%emt 0:00:01]} Qxf2 {[%emt 0:00:09]} 30. Bxf5 {[%emt 0:02:21]} Rxe5 {[%emt 0:00:45]} 31. fxe5 {[%emt 0:01:50]} gxf5 {[%emt 0:00:41]} 32. Qxf5 {[%emt 0:06:00]} Rxc4 {[%emt 0:00:03]} 33. Qg5+ {[%emt 0:00:24]} Kf8 {[%emt 0:00:14]} 34. Qd8+ {[%emt 0:00:33]} Kg7 {[%emt 0:00:03]} 35. Qg5+ {[%emt 0:00:25]} 1/2-1/2

[Event "3rd Memorial Warakomska 2019"]
[Site "Suwalki"]
[Date "2019.08.06"]
[Round "2.36"]
[White "Chan, Kim Yew"]
[Black "Pniaczek, Marek"]
[Result "0-1"]
[ECO "A33"]
[WhiteElo "2276"]
[BlackElo "2276"]
[Annotator "NA"]
[PlyCount "112"]
[EventDate "2019.08.05"]
[EventType "swiss"]
[EventCountry "POL"]
[SourceTitle "playchess.com"]
[Source "ChessBase"]
[SourceQuality "1"]
[TimeControl "40/5400+30:1800+30"]

1. Nf3 {[%emt 0:00:00]} c5 {[%emt 0:00:00]} 2. c4 {[%emt 0:00:00]} Nc6 {[%emt 0:00:00]} 3. d4 {[%emt 0:00:00]} cxd4 {[%emt 0:00:00]} 4. Nxd4 {[%emt 0:00:00]} Nf6 {[%emt 0:00:07]} 5. Nc3 {[%emt 0:00:00]} e6 {[%emt 0:00:10]} 6. a3 {[%emt 0:00:00]} Be7 {[%emt 0:00:53]} 7. e4 {[%emt 0:00:11]} O-O {[%emt 0:01:04]} 8. Nc2 {[%emt 0:03:29]} b6 {[%emt 0:07:40]} 9. Be2 {[%emt 0:00:37]} Bb7 {[%emt 0:01:12]} 10. O-O {[%emt 0:01:27]} Rc8 {[%emt 0:02:06]} 11. Ne3 {[%emt 0:16:12]} Bc5 {[%emt 0:09:09]} 12. Nc2 {[%emt 0:23:18]} Ne5 {[%emt 0:07:41]} 13. b4 {[%emt 0:03:46]} Be7 {[%emt 0:00:12]} 14. Qd4 {[%emt 0:01:18]} Qc7 {[%emt 0:06:32]} 15. Ne3 {[%emt 0:12:10]} Ng6 {[%emt 0:18:16]} 16. g3 {[%emt 0:10:38]} Rfd8 {[%emt 0:11:27]} 17. Bb2 {[%emt 0:01:15]} d6 {[%emt 0:01:11]} 18. Rac1 {[%emt 0:01:02]} Qb8 {[%emt 0:01:11]} 19. Bf3 {[%emt 0:03:14]} Qa8 {[%emt 0:02:08]} 20. Bg2 {[%emt 0:00:39]} Bf8 {[%emt 0:04:09]} 21. h3 {[%emt 0:03:34]} Re8 {[%emt 0:01:09]} 22. Kh2 {[%emt 0:00:28]} Bc6 {[%emt 0:01:20]} 23. Rfe1 {[%emt 0:02:19]} h5 {[%emt 0:00:58]} 24. a4 {[%emt 0:02:56]} h4 {[%emt 0:01:00]} 25. Ra1 {[%emt 0:01:00]} Qb8 {[%emt 0:02:19]} 26. b5 {[%emt 0:02:10]} Bb7 {[%emt 0:01:17]} 27. a5 {[%emt 0:00:13]} Rc5 {[%emt 0:02:52]} 28. axb6 {[%emt 0:00:28]} axb6 {[%emt 0:00:09]} 29. Ne2 {[%emt 0:04:20]} Qc7 {[%emt 0:11:46]} 30. Ra7 {[%emt 0:00:32]} hxg3+ {[%emt 0:00:54]} 31. fxg3 {[%emt 0:00:13]} Rb8 {[%emt 0:04:11]} 32. Rf1 {[%emt 0:03:22]} Rg5 {[%emt 0:01:23]} 33. Rxf6 {[%emt 0:02:19]} gxf6 {[%emt 0:00:45]} 34. Qxf6 {[%emt 0:00:15]} Qe7 {[%emt 0:00:37]} 35. Qd4 {[%emt 0:00:45]} Qc7 {[%emt 0:00:54]} 36. Qf6 {[%emt 0:00:34]} Qe7 {[%emt 0:00:11]} 37. Qd4 {[%emt 0:00:24]} Qc7 {[%emt 0:00:04]} 38. Ng4 {[%emt 0:02:07]} e5 {[%emt 0:00:31]} 39. Qe3 {[%emt 0:00:40]} Rxg4 {[%emt 0:00:46]} 40. hxg4 {[%emt 0:00:00]} Qxc4 {[%emt 0:00:00]} 41. Nc3 {[%emt 0:03:23]} Bc8 {[%emt 0:16:08]} 42. Qf2 {[%emt 0:11:57]} Be6 {[%emt 0:08:33]} 43. g5 {[%emt 0:08:02]} Be7 {[%emt 0:01:51]} 44. Bh3 {[%emt 0:00:53]} Bxh3 {[%emt 0:03:25]} 45. Kxh3 {[%emt 0:00:12]} Bxg5 {[%emt 0:00:34]} 46. Nd5 {[%emt 0:02:24]} Rf8 {[%emt 0:00:10]} 47. Qf5 {[%emt 0:01:12]} Kg7 {[%emt 0:02:06]} 48. Kg4 {[%emt 0:03:31]} Bd8 {[%emt 0:00:51]} 49. Qf3 {[%emt 0:03:22]} Kh6 {[%emt 0:01:15]} 50. Ne3 {[%emt 0:01:11]} f5+ {[%emt 0:00:54]} 51. Nxf5+ {[%emt 0:00:38]} Rxf5 {[%emt 0:00:09]} 52. Qh1+ {[%emt 0:00:35]} Nh4 {[%emt 0:00:53]} 53. Qc1+ {[%emt 0:00:15]} Rg5+ {[%emt 0:00:35]} 54. Kh3 {[%emt 0:00:31]} Qxe4 {[%emt 0:00:19]} 55. Bxe5 {[%emt 0:00:52]} Qg2+ {[%emt 0:00:09]} 56. Kxh4 {[%emt 0:00:08]} Qh2# {[%emt 0:00:26]} 0-1

[Event "3rd Memorial Warakomska 2019"]
[Site "Suwalki"]
[Date "2019.08.06"]
[Round "2.37"]
[White "Sernecki, Franciszek"]
[Black "Korbal, Arkadiusz"]
[Result "1-0"]
[ECO "C82"]
[WhiteElo "2275"]
[BlackElo "2178"]
[Annotator "NA"]
[PlyCount "157"]
[EventDate "2019.08.05"]
[EventType "swiss"]
[EventCountry "POL"]
[SourceTitle "playchess.com"]
[Source "ChessBase"]
[SourceQuality "1"]
[TimeControl "40/5400+30:1800+30"]

1. e4 {[%emt 0:00:00]} e5 {[%emt 0:00:00]} 2. Nf3 {[%emt 0:00:00]} Nc6 {[%emt 0:00:00]} 3. Bb5 {[%emt 0:00:06]} a6 {[%emt 0:00:08]} 4. Ba4 {[%emt 0:00:07]} Nf6 {[%emt 0:00:17]} 5. O-O {[%emt 0:00:07]} Nxe4 {[%emt 0:00:12]} 6. d4 {[%emt 0:01:03]} b5 {[%emt 0:00:41]} 7. Bb3 {[%emt 0:00:12]} d5 {[%emt 0:00:37]} 8. dxe5 {[%emt 0:03:12]} Be6 {[%emt 0:00:00]} 9. c3 {[%emt 0:07:09]} Bc5 {[%emt 0:01:20]} 10. Bc2 {[%emt 0:21:11]} O-O {[%emt 0:01:03]} 11. Nbd2 {[%emt 0:04:59]} Nxf2 {[%emt 0:03:48]} 12. Rxf2 {[%emt 0:01:12]} f6 {[%emt 0:00:11]} 13. exf6 {[%emt 0:09:39]} Bxf2+ {[%emt 0:00:13]} 14. Kxf2 {[%emt 0:00:54]} Qxf6 {[%emt 0:00:26]} 15. Nf1 {[%emt 0:08:41]} Ne5 {[%emt 0:04:57]} 16. Be3 {[%emt 0:05:55]} Rae8 {[%emt 0:09:55]} 17. Bc5 {[%emt 0:06:42]} Rf7 {[%emt 0:04:23]} 18. Kg1 {[%emt 0:07:42]} Bg4 {[%emt 0:08:33]} 19. N1d2 {[%emt 0:02:45]} Nxf3+ {[%emt 0:15:29]} 20. Nxf3 {[%emt 0:01:54]} Qc6 {[%emt 0:09:00]} 21. b4 {[%emt 0:02:46]} Bxf3 {[%emt 0:11:17]} 22. gxf3 {[%emt 0:00:23]} Re5 {[%emt 0:03:26]} 23. Qd3 {[%emt 0:03:35]} Qh6 {[%emt 0:01:16]} 24. Bf2 {[%emt 0:00:40]} c6 {[%emt 0:03:22]} 25. Re1 {[%emt 0:03:15]} Rfe7 {[%emt 0:05:01]} 26. Rxe5 {[%emt 0:01:10]} Rxe5 {[%emt 0:00:03]} 27. Bg3 {[%emt 0:00:37]} Qe3+ {[%emt 0:01:08]} 28. Bf2 {[%emt 0:01:59]} Qc1+ {[%emt 0:03:03]} 29. Kg2 {[%emt 0:00:49]} g6 {[%emt 0:00:39]} 30. h4 {[%emt 0:01:28]} Re6 {[%emt 0:03:17]} 31. Bb3 {[%emt 0:02:27]} Qf4 {[%emt 0:00:57]} 32. Qd4 {[%emt 0:00:58]} Qxd4 {[%emt 0:02:38]} 33. Bxd4 {[%emt 0:00:15]} Re2+ {[%emt 0:00:20]} 34. Kg3 {[%emt 0:00:40]} Kf7 {[%emt 0:00:14]} 35. Kg4 {[%emt 0:00:52]} Rg2+ {[%emt 0:01:02]} 36. Kh3 {[%emt 0:00:46]} Rd2 {[%emt 0:00:29]} 37. Kg4 {[%emt 0:01:12]} Rg2+ {[%emt 0:00:11]} 38. Kf4 {[%emt 0:00:43]} Rh2 {[%emt 0:01:26]} 39. Kg3 {[%emt 0:00:33]} Rd2 {[%emt 0:00:22]} 40. Bh8 {[%emt 0:00:00]} Ke6 {[%emt 0:00:00]} 41. Kf4 {[%emt 0:11:58]} Re2 {[%emt 0:06:13]} 42. Bd4 {[%emt 0:05:11]} Rh2 {[%emt 0:01:03]} 43. Kg5 {[%emt 0:01:58]} Rg2+ {[%emt 0:04:19]} 44. Kh6 {[%emt 0:07:43]} Rh2 {[%emt 0:00:27]} 45. Kxh7 {[%emt 0:00:58]} Kf7 {[%emt 0:05:08]} 46. Kh6 {[%emt 0:00:18]} Rxh4+ {[%emt 0:00:06]} 47. Kg5 {[%emt 0:00:02]} Rh2 {[%emt 0:00:12]} 48. Kf4 {[%emt 0:01:48]} Re2 {[%emt 0:00:38]} 49. Kg4 {[%emt 0:02:10]} Rg2+ {[%emt 0:00:17]} 50. Kf4 {[%emt 0:00:20]} Re2 {[%emt 0:00:06]} 51. Kg4 {[%emt 0:00:09]} Rg2+ {[%emt 0:00:06]} 52. Kh3 {[%emt 0:00:06]} Rd2 {[%emt 0:01:59]} 53. f4 {[%emt 0:00:41]} Ke6 {[%emt 0:00:56]} 54. Kg4 {[%emt 0:00:21]} Rh2 {[%emt 0:01:04]} 55. Kg3 {[%emt 0:01:16]} Rd2 {[%emt 0:00:10]} 56. Kg4 {[%emt 0:01:35]} Rg2+ {[%emt 0:00:58]} 57. Kf3 {[%emt 0:00:17]} Rh2 {[%emt 0:00:04]} 58. Bf2 {[%emt 0:00:47]} Rh3+ {[%emt 0:00:30]} 59. Bg3 {[%emt 0:00:18]} Rh1 {[%emt 0:00:23]} 60. Bc2 {[%emt 0:01:35]} Kf7 {[%emt 0:02:59]} 61. Ke3 {[%emt 0:00:53]} Rh3 {[%emt 0:02:22]} 62. Kf3 {[%emt 0:00:30]} Rh1 {[%emt 0:00:06]} 63. Ke2 {[%emt 0:00:18]} Kf6 {[%emt 0:01:55]} 64. Bf2 {[%emt 0:00:38]} Rh2 {[%emt 0:00:22]} 65. Kf3 {[%emt 0:00:45]} Rh3+ {[%emt 0:00:19]} 66. Kg2 {[%emt 0:00:42]} Rh5 {[%emt 0:01:21]} 67. Bd4+ {[%emt 0:00:20]} Kf7 {[%emt 0:00:14]} 68. a4 {[%emt 0:00:12]} Rh4 {[%emt 0:01:05]} 69. Kg3 {[%emt 0:00:34]} Rh1 {[%emt 0:00:19]} 70. a5 {[%emt 0:00:10]} Rc1 {[%emt 0:00:56]} 71. Bd3 {[%emt 0:00:39]} Rd1 {[%emt 0:00:30]} 72. Be2 {[%emt 0:00:13]} Re1 {[%emt 0:02:15]} 73. Bg4 {[%emt 0:00:10]} Ke7 {[%emt 0:00:42]} 74. Bc8 {[%emt 0:00:37]} Kd8 {[%emt 0:00:11]} 75. Bxa6 {[%emt 0:00:18]} Kc7 {[%emt 0:00:23]} 76. Be5+ {[%emt 0:00:10]} Kd7 {[%emt 0:00:08]} 77. Bb7 {[%emt 0:00:38]} g5 {[%emt 0:00:23]} 78. a6 {[%emt 0:00:33]} gxf4+ {[%emt 0:00:45]} 79. Bxf4 {[%emt 0:00:41]} 1-0